[Event "*** SCC Grand Prix: Titled Tuesday Blitz"]
[Site "Chess.com"]
[Date "2020.07.07"]
[Round "3"]
[White "FlamingPhoenix123"]
[Black "BlackBoarder"]
[Result "0-1"]
[WhiteElo "2396"]
[BlackElo "2590"]
[TimeControl "180+1"]
[EndTime "10:30:38 PDT"]
[Termination "BlackBoarder won by resignation"]

1. e4 {[%clk 0:03:00.9]} 1... e6 {[%clk 0:02:57.8]} 2. d4 {[%clk 0:02:59.2]}
2... d5 {[%clk 0:02:57.2]} 3. Nd2 {[%clk 0:02:59.6]} 3... c5 {[%clk 0:02:56.4]}
4. Ngf3 {[%clk 0:02:59.4]} 4... cxd4 {[%clk 0:02:55.7]} 5. Nxd4 {[%clk
0:03:00.3]} 5... Nf6 {[%clk 0:02:55.5]} 6. exd5 {[%clk 0:02:55.9]} 6... Nxd5
{[%clk 0:02:55.5]} 7. N2f3 {[%clk 0:02:33.7]} 7... Bb4+ {[%clk 0:02:55.1]} 8.
Bd2 {[%clk 0:02:29.5]} 8... O-O {[%clk 0:02:53.2]} 9. Bc4 {[%clk 0:02:23.6]}
9... e5 {[%clk 0:02:28.5]} 10. Nb3 {[%clk 0:02:15]} 10... Bxd2+ {[%clk
0:02:21.9]} 11. Qxd2 {[%clk 0:02:15.9]} 11... Nf4 {[%clk 0:02:19.3]} 12. Qxd8
{[%clk 0:02:01.1]} 12... Rxd8 {[%clk 0:02:14.9]} 13. g3 {[%clk 0:02:01]} 13...
Ng6 {[%clk 0:02:04.1]} 14. Ng5 {[%clk 0:01:45.9]} 14... Nh8 {[%clk 0:01:36.5]}
15. O-O {[%clk 0:01:31.7]} 15... Nc6 {[%clk 0:01:35]} 16. Rad1 {[%clk
0:01:20.6]} 16... Bf5 {[%clk 0:01:28.4]} 17. c3 {[%clk 0:01:16.7]} 17... h6
{[%clk 0:01:19.2]} 18. Nf3 {[%clk 0:01:09.9]} 18... Ng6 {[%clk 0:01:13.5]} 19.
Nc5 {[%clk 0:00:26.2]} 19... b6 {[%clk 0:01:11.4]} 20. Nb3 {[%clk 0:00:26.1]}
20... Bg4 {[%clk 0:00:56.7]} 21. Rxd8+ {[%clk 0:00:24.3]} 21... Rxd8 {[%clk
0:00:56.3]} 22. Nfd2 {[%clk 0:00:24.3]} 22... Kf8 {[%clk 0:00:50.8]} 23. f3
{[%clk 0:00:21.8]} 23... Bf5 {[%clk 0:00:49.4]} 24. Kf2 {[%clk 0:00:21.5]} 24...
f6 {[%clk 0:00:46.3]} 25. Ke3 {[%clk 0:00:21.4]} 25... Nge7 {[%clk 0:00:45.7]}
26. Ke2 {[%clk 0:00:20.9]} 26... Nd5 {[%clk 0:00:44.6]} 27. Rd1 {[%clk
0:00:19.9]} 27... Ke7 {[%clk 0:00:43.9]} 28. Ne4 {[%clk 0:00:18.7]} 28... Bxe4
{[%clk 0:00:40.8]} 29. fxe4 {[%clk 0:00:19.6]} 29... Nc7 {[%clk 0:00:40.2]} 30.
Bd5 {[%clk 0:00:17.1]} 30... Nb8 {[%clk 0:00:34.6]} 31. c4 {[%clk 0:00:16.9]}
31... a5 {[%clk 0:00:32.8]} 32. Nd2 {[%clk 0:00:14.3]} 32... Nba6 {[%clk
0:00:32.2]} 33. Nb1 {[%clk 0:00:14]} 33... Nc5 {[%clk 0:00:30.7]} 34. Nc3 {[%clk
0:00:14.3]} 34... g6 {[%clk 0:00:29]} 35. Rd2 {[%clk 0:00:13.6]} 35... f5 {[%clk
0:00:29.2]} 36. exf5 {[%clk 0:00:13.4]} 36... gxf5 {[%clk 0:00:29.4]} 37. Ke3
{[%clk 0:00:14.3]} 37... Kf6 {[%clk 0:00:29.3]} 38. Rf2 {[%clk 0:00:14.3]} 38...
Kg6 {[%clk 0:00:28.2]} 39. h3 {[%clk 0:00:13.4]} 39... Rf8 {[%clk 0:00:28.2]}
40. Ke2 {[%clk 0:00:12.7]} 40... Ne8 {[%clk 0:00:28.3]} 41. Ke3 {[%clk
0:00:12.6]} 41... Nd6 {[%clk 0:00:28.4]} 42. b3 {[%clk 0:00:12.1]} 42... h5
{[%clk 0:00:26]} 43. Ke2 {[%clk 0:00:11.7]} 43... Kg5 {[%clk 0:00:26.2]} 44. Ke3
{[%clk 0:00:11.7]} 44... f4+ {[%clk 0:00:25.8]} 45. gxf4+ {[%clk 0:00:12.6]}
45... exf4+ {[%clk 0:00:26.1]} 46. Kf3 {[%clk 0:00:13]} 46... Nf5 {[%clk
0:00:23.9]} 47. Rg2+ {[%clk 0:00:13.3]} 47... Ng3 {[%clk 0:00:23.5]} 48. Ne2
{[%clk 0:00:12.1]} 48... h4 {[%clk 0:00:22.4]} 49. Nd4 {[%clk 0:00:11.7]} 49...
Re8 {[%clk 0:00:21.3]} 50. Rg1 {[%clk 0:00:06.9]} 50... Re3+ {[%clk 0:00:18.9]}
51. Kg2 {[%clk 0:00:07.3]} 51... Nd3 {[%clk 0:00:16.6]} 52. Nf3+ {[%clk
0:00:06.8]} 52... Kh5 {[%clk 0:00:16]} 53. Rd1 {[%clk 0:00:06]} 53... Re2+
{[%clk 0:00:15.7]} 54. Kg1 {[%clk 0:00:06.6]} 54... Nf2 {[%clk 0:00:15.5]} 55.
Nd4 {[%clk 0:00:05.8]} 55... Nxd1 {[%clk 0:00:14.1]} 56. Nxe2 {[%clk 0:00:05.1]}
56... Nxe2+ {[%clk 0:00:15]} 57. Kf1 {[%clk 0:00:03.8]} 57... Ng3+ {[%clk
0:00:13.2]} 58. Ke1 {[%clk 0:00:04.1]} 58... Nc3 {[%clk 0:00:12.3]} 59. Bf3+
{[%clk 0:00:04.7]} 59... Kg5 {[%clk 0:00:12.5]} 60. Kd2 {[%clk 0:00:05.6]} 60...
Nxa2 {[%clk 0:00:12.6]} 61. Kd3 {[%clk 0:00:06.3]} 61... Nb4+ {[%clk 0:00:11.6]}
62. Kc3 {[%clk 0:00:07.1]} 62... Nf5 {[%clk 0:00:11.5]} 63. Bg4 {[%clk
0:00:06.9]} 63... Kf6 {[%clk 0:00:10.7]} 64. Bf3 {[%clk 0:00:07.1]} 64... Ke5
{[%clk 0:00:11]} 65. c5 {[%clk 0:00:07.5]} 65... bxc5 {[%clk 0:00:10.9]} 66. Kc4
{[%clk 0:00:08.4]} 66... Nd4 {[%clk 0:00:11.3]} 67. Bd1 {[%clk 0:00:08.4]} 67...
f3 {[%clk 0:00:11.6]} 68. Kxc5 {[%clk 0:00:07.9]} 68... f2 {[%clk 0:00:11.5]}
0-1

[Event "*** SCC Grand Prix: Titled Tuesday Blitz"]
[Site "Chess.com"]
[Date "2020.07.07"]
[Round "3"]
[White "K-Nygren"]
[Black "rugbyclub"]
[Result "1-0"]
[WhiteElo "2479"]
[BlackElo "2150"]
[TimeControl "180+1"]
[EndTime "10:30:39 PDT"]
[Termination "K-Nygren won on time"]

1. e4 {[%clk 0:03:00.9]} 1... e5 {[%clk 0:02:59.4]} 2. Nf3 {[%clk 0:03:01.1]}
2... Nc6 {[%clk 0:02:59.9]} 3. Bb5 {[%clk 0:03:00.9]} 3... a6 {[%clk 0:02:59.1]}
4. Ba4 {[%clk 0:03:01.2]} 4... Nf6 {[%clk 0:02:59.3]} 5. O-O {[%clk 0:03:00.9]}
5... Be7 {[%clk 0:02:59.8]} 6. Re1 {[%clk 0:02:58.5]} 6... b5 {[%clk 0:02:58]}
7. Bb3 {[%clk 0:02:58.8]} 7... O-O {[%clk 0:02:57.7]} 8. c3 {[%clk 0:02:56.3]}
8... d6 {[%clk 0:02:55.7]} 9. h3 {[%clk 0:02:55.8]} 9... Nb8 {[%clk 0:02:54.9]}
10. d4 {[%clk 0:02:54.8]} 10... Nbd7 {[%clk 0:02:54.2]} 11. Nbd2 {[%clk
0:02:55.1]} 11... Bb7 {[%clk 0:02:53.5]} 12. Bc2 {[%clk 0:02:52.5]} 12... Re8
{[%clk 0:02:53.2]} 13. Nf1 {[%clk 0:02:51]} 13... Bf8 {[%clk 0:02:52.8]} 14. Ng3
{[%clk 0:02:51.3]} 14... g6 {[%clk 0:02:53]} 15. Bg5 {[%clk 0:02:50.3]} 15... h6
{[%clk 0:02:52.6]} 16. Bd2 {[%clk 0:02:49.3]} 16... c5 {[%clk 0:02:51.2]} 17. d5
{[%clk 0:02:48.3]} 17... c4 {[%clk 0:02:48.9]} 18. Qc1 {[%clk 0:02:47.4]} 18...
Kh7 {[%clk 0:02:46.1]} 19. Rf1 {[%clk 0:02:44.6]} 19... Bg7 {[%clk 0:02:45.6]}
20. Nh2 {[%clk 0:02:43.7]} 20... Nc5 {[%clk 0:02:41.6]} 21. b4 {[%clk
0:02:36.5]} 21... cxb3 {[%clk 0:02:38.9]} 22. axb3 {[%clk 0:02:36.1]} 22... Ncd7
{[%clk 0:02:23]} 23. Qe1 {[%clk 0:02:19]} 23... Rc8 {[%clk 0:02:10.8]} 24. Kh1
{[%clk 0:02:18.4]} 24... Nb6 {[%clk 0:02:03.8]} 25. f3 {[%clk 0:02:02.9]} 25...
Qe7 {[%clk 0:01:48.6]} 26. Qf2 {[%clk 0:02:02.9]} 26... Nfd7 {[%clk 0:01:40.2]}
27. Rae1 {[%clk 0:02:00.3]} 27... Rf8 {[%clk 0:01:37.1]} 28. Bb1 {[%clk
0:01:51.6]} 28... Nc5 {[%clk 0:01:19.1]} 29. Be3 {[%clk 0:01:40.1]} 29... Qc7
{[%clk 0:01:13.7]} 30. Bc2 {[%clk 0:01:34]} 30... Ncd7 {[%clk 0:01:08.3]} 31.
Bd2 {[%clk 0:01:30.1]} 31... Nc5 {[%clk 0:01:01.4]} 32. Ng4 {[%clk 0:01:25.9]}
32... Rce8 {[%clk 0:00:56.9]} 33. f4 {[%clk 0:01:20.3]} 33... exf4 {[%clk
0:00:54.9]} 34. Bxf4 {[%clk 0:01:21.2]} 34... Ncd7 {[%clk 0:00:47.9]} 35. Nf5
{[%clk 0:01:11.3]} 35... gxf5 {[%clk 0:00:41.6]} 36. exf5 {[%clk 0:01:11.4]}
36... f6 {[%clk 0:00:42]} 37. Bxh6 {[%clk 0:00:51.7]} 37... Ne5 {[%clk 0:00:35]}
38. Rxe5 {[%clk 0:00:37.7]} 38... dxe5 {[%clk 0:00:33.5]} 39. Qh4 {[%clk
0:00:37.3]} 39... Kg8 {[%clk 0:00:28.6]} 40. Rf3 {[%clk 0:00:33.1]} 40... Nxd5
{[%clk 0:00:15.2]} 41. Rg3 {[%clk 0:00:28.5]} 41... Re7 {[%clk 0:00:15.4]} 42.
Bxg7 {[%clk 0:00:26]} 42... Rxg7 {[%clk 0:00:15.4]} 43. Nh6+ {[%clk 0:00:23]}
43... Kh7 {[%clk 0:00:15.7]} 44. Nf7+ {[%clk 0:00:19.9]} 44... Kg8 {[%clk
0:00:15.9]} 45. Qh8+ {[%clk 0:00:16.1]} 45... Kxf7 {[%clk 0:00:15.8]} 46. Qxg7+
{[%clk 0:00:13.6]} 46... Ke8 {[%clk 0:00:15.6]} 47. Qg6+ {[%clk 0:00:13.8]}
47... Kd8 {[%clk 0:00:15.1]} 48. c4 {[%clk 0:00:13.2]} 48... bxc4 {[%clk
0:00:14.5]} 49. bxc4 {[%clk 0:00:13.8]} 49... Nf4 {[%clk 0:00:15.1]} 50. Qg4
{[%clk 0:00:10.8]} 50... Kc8 {[%clk 0:00:14.8]} 51. Rc3 {[%clk 0:00:08.6]} 51...
Rd8 {[%clk 0:00:14.8]} 52. c5 {[%clk 0:00:08.3]} 52... Bxg2+ {[%clk 0:00:12.8]}
53. Kg1 {[%clk 0:00:07.7]} 53... Rd2 {[%clk 0:00:12.7]} 54. Qg8+ {[%clk
0:00:06.7]} 54... Kb7 {[%clk 0:00:11.7]} 55. Qb3+ {[%clk 0:00:06.5]} 55... Ka7
{[%clk 0:00:12]} 56. c6 {[%clk 0:00:05.9]} 56... Nxh3+ {[%clk 0:00:11.2]} 57.
Kh2 {[%clk 0:00:05.5]} 57... e4+ {[%clk 0:00:10.6]} 58. Rg3 {[%clk 0:00:05.9]}
58... Nf4 {[%clk 0:00:09.1]} 59. Qe3+ {[%clk 0:00:03.6]} 59... Ka8 {[%clk
0:00:04.5]} 60. Qxd2 {[%clk 0:00:04.1]} 60... Qh7+ {[%clk 0:00:03]} 61. Kg1
{[%clk 0:00:02.9]} 61... Qh1+ {[%clk 0:00:03.5]} 62. Kf2 {[%clk 0:00:03.8]}
62... Qf1+ {[%clk 0:00:04]} 63. Ke3 {[%clk 0:00:03.3]} 63... Qg1+ {[%clk
0:00:03.4]} 64. Kxf4 {[%clk 0:00:02.7]} 1-0

[Event "*** SCC Grand Prix: Titled Tuesday Blitz"]
[Site "Chess.com"]
[Date "2020.07.07"]
[Round "3"]
[White "grunbergmihai"]
[Black "Jungle_Jaguar"]
[Result "1-0"]
[WhiteElo "2435"]
[BlackElo "2649"]
[TimeControl "180+1"]
[EndTime "10:30:42 PDT"]
[Termination "grunbergmihai won by checkmate"]

1. Nf3 {[%clk 0:03:00.9]} 1... Nf6 {[%clk 0:02:58.7]} 2. c4 {[%clk 0:03:00.8]}
2... c6 {[%clk 0:02:57.5]} 3. g3 {[%clk 0:03:00.6]} 3... d5 {[%clk 0:02:57.7]}
4. Bg2 {[%clk 0:03:01.5]} 4... Bg4 {[%clk 0:02:57.9]} 5. O-O {[%clk 0:03:02.4]}
5... Nbd7 {[%clk 0:02:58.3]} 6. d3 {[%clk 0:03:01.9]} 6... e5 {[%clk 0:02:57.4]}
7. cxd5 {[%clk 0:03:00.8]} 7... cxd5 {[%clk 0:02:56.6]} 8. Qa4 {[%clk
0:02:52.9]} 8... Bd6 {[%clk 0:02:52.9]} 9. Nc3 {[%clk 0:02:46.3]} 9... d4 {[%clk
0:02:29.8]} 10. Nb5 {[%clk 0:02:42.4]} 10... Bb8 {[%clk 0:02:26.5]} 11. e3
{[%clk 0:02:13.2]} 11... dxe3 {[%clk 0:01:28.1]} 12. Bxe3 {[%clk 0:02:12.9]}
12... O-O {[%clk 0:01:24.9]} 13. Rfe1 {[%clk 0:02:08.1]} 13... a6 {[%clk
0:01:19.1]} 14. Nc3 {[%clk 0:02:05.4]} 14... Re8 {[%clk 0:01:09.5]} 15. Bg5
{[%clk 0:01:52]} 15... h6 {[%clk 0:01:06.8]} 16. Qxg4 {[%clk 0:01:44.4]} 16...
Nxg4 {[%clk 0:01:06]} 17. Bxd8 {[%clk 0:01:43.8]} 17... Rxd8 {[%clk 0:01:06.9]}
18. Bh3 {[%clk 0:01:39.4]} 18... Ngf6 {[%clk 0:01:03.7]} 19. Ne4 {[%clk
0:01:28.8]} 19... b5 {[%clk 0:00:32.6]} 20. Rac1 {[%clk 0:01:23.8]} 20... Nb6
{[%clk 0:00:31.4]} 21. Nxf6+ {[%clk 0:01:21.5]} 21... gxf6 {[%clk 0:00:32.3]}
22. Rc6 {[%clk 0:01:16.8]} 22... Nd5 {[%clk 0:00:32.8]} 23. a3 {[%clk
0:01:08.6]} 23... Kg7 {[%clk 0:00:26.5]} 24. Nh4 {[%clk 0:01:07.9]} 24... Ne7
{[%clk 0:00:25.5]} 25. Nf5+ {[%clk 0:01:03.3]} 25... Nxf5 {[%clk 0:00:24.5]} 26.
Bxf5 {[%clk 0:01:04.2]} 26... Ba7 {[%clk 0:00:20.8]} 27. Rec1 {[%clk 0:00:59.1]}
27... Bd4 {[%clk 0:00:20.7]} 28. b3 {[%clk 0:00:53.6]} 28... Bb2 {[%clk
0:00:19.9]} 29. R1c2 {[%clk 0:00:50.5]} 29... Bxa3 {[%clk 0:00:20.4]} 30. Ra2
{[%clk 0:00:47.1]} 30... Bb4 {[%clk 0:00:19.1]} 31. Raxa6 {[%clk 0:00:45.4]}
31... Rxa6 {[%clk 0:00:19.4]} 32. Rxa6 {[%clk 0:00:46.3]} 32... Bc3 {[%clk
0:00:19.7]} 33. Kg2 {[%clk 0:00:41.4]} 33... b4 {[%clk 0:00:18.2]} 34. Ra7
{[%clk 0:00:38.6]} 34... Bd4 {[%clk 0:00:18]} 35. Rb7 {[%clk 0:00:38.3]} 35...
Bc5 {[%clk 0:00:18.3]} 36. h4 {[%clk 0:00:35.7]} 36... Rd6 {[%clk 0:00:17.4]}
37. Kf3 {[%clk 0:00:32.5]} 37... Ra6 {[%clk 0:00:17.1]} 38. Rc7 {[%clk
0:00:25.9]} 38... Bd4 {[%clk 0:00:16.7]} 39. h5 {[%clk 0:00:11.2]} 39... Ra2
{[%clk 0:00:16.4]} 40. Bg6 {[%clk 0:00:10.6]} 40... Rxf2+ {[%clk 0:00:16.7]} 41.
Ke4 {[%clk 0:00:07.6]} 41... Re2+ {[%clk 0:00:15.2]} 42. Kd5 {[%clk 0:00:07.4]}
42... Re3 {[%clk 0:00:14.2]} 43. Rxf7+ {[%clk 0:00:06.7]} 43... Kg8 {[%clk
0:00:14.8]} 44. Rb7 {[%clk 0:00:05.8]} 44... Rxg3 {[%clk 0:00:12.6]} 45. Rxb4
{[%clk 0:00:04.8]} 45... Rg5 {[%clk 0:00:06.8]} 46. Rb8+ {[%clk 0:00:04.3]}
46... Kg7 {[%clk 0:00:07]} 47. Ke6 {[%clk 0:00:03.9]} 47... e4 {[%clk
0:00:07.2]} 48. dxe4 {[%clk 0:00:03.1]} 48... Re5+ {[%clk 0:00:07.5]} 49. Kd6
{[%clk 0:00:03.3]} 49... Bc5+ {[%clk 0:00:08.4]} 50. Kc6 {[%clk 0:00:02.8]}
50... Be3 {[%clk 0:00:09.3]} 51. b4 {[%clk 0:00:02.2]} 51... Bf4 {[%clk
0:00:09.3]} 52. b5 {[%clk 0:00:02.2]} 52... Re6+ {[%clk 0:00:09.3]} 53. Kb7
{[%clk 0:00:01.7]} 53... Bxb8 {[%clk 0:00:09]} 54. Kxb8 {[%clk 0:00:02.6]} 54...
Rb6+ {[%clk 0:00:09.7]} 55. Kc7 {[%clk 0:00:02.5]} 55... Rxb5 {[%clk 0:00:10.6]}
56. Kd6 {[%clk 0:00:02.7]} 56... Re5 {[%clk 0:00:11.4]} 57. Kc6 {[%clk
0:00:02.2]} 57... Kf8 {[%clk 0:00:12.3]} 58. Kd6 {[%clk 0:00:02.3]} 58... Re6+
{[%clk 0:00:12.4]} 59. Kxe6 {[%clk 0:00:02.1]} 59... Kg7 {[%clk 0:00:13.3]} 60.
Kf5 {[%clk 0:00:02.7]} 60... Kf8 {[%clk 0:00:13.7]} 61. Kxf6 {[%clk 0:00:03.1]}
61... Kg8 {[%clk 0:00:14.6]} 62. e5 {[%clk 0:00:04]} 62... Kh8 {[%clk
0:00:15.5]} 63. e6 {[%clk 0:00:04.3]} 63... Kg8 {[%clk 0:00:15.8]} 64. e7 {[%clk
0:00:04.5]} 64... Kh8 {[%clk 0:00:16.7]} 65. e8=Q# {[%clk 0:00:04.7]} 1-0

[Event "*** SCC Grand Prix: Titled Tuesday Blitz"]
[Site "Chess.com"]
[Date "2020.07.07"]
[Round "3"]
[White "zaur-mammadov"]
[Black "Dedic8"]
[Result "1-0"]
[WhiteElo "2601"]
[BlackElo "2782"]
[TimeControl "180+1"]
[EndTime "10:30:43 PDT"]
[Termination "zaur-mammadov won on time"]

1. e4 {[%clk 0:03:00.9]} 1... e5 {[%clk 0:03:00.1]} 2. Nf3 {[%clk 0:03:00.5]}
2... Nc6 {[%clk 0:03:00.8]} 3. Nc3 {[%clk 0:03:01.1]} 3... Nf6 {[%clk
0:02:59.9]} 4. Be2 {[%clk 0:03:01.5]} 4... g6 {[%clk 0:02:46.6]} 5. d4 {[%clk
0:03:00.8]} 5... exd4 {[%clk 0:02:46.3]} 6. Nxd4 {[%clk 0:03:01.7]} 6... d6
{[%clk 0:02:24.9]} 7. Nxc6 {[%clk 0:02:59.9]} 7... bxc6 {[%clk 0:02:24.2]} 8.
Bg5 {[%clk 0:02:43]} 8... Bg7 {[%clk 0:02:24.2]} 9. e5 {[%clk 0:02:33.5]} 9...
dxe5 {[%clk 0:02:10.1]} 10. Qxd8+ {[%clk 0:02:34.4]} 10... Kxd8 {[%clk
0:02:10.8]} 11. O-O-O+ {[%clk 0:02:33.9]} 11... Ke7 {[%clk 0:02:11.1]} 12. Bf3
{[%clk 0:02:33.9]} 12... Be6 {[%clk 0:01:57.3]} 13. Bxc6 {[%clk 0:02:16.1]}
13... Rad8 {[%clk 0:01:56.2]} 14. Be3 {[%clk 0:02:16.4]} 14... Nd7 {[%clk
0:01:33.6]} 15. Nd5+ {[%clk 0:02:11.5]} 15... Bxd5 {[%clk 0:01:33.3]} 16. Rxd5
{[%clk 0:02:12.4]} 16... Nb6 {[%clk 0:01:33.5]} 17. Ra5 {[%clk 0:01:57.1]} 17...
Kd6 {[%clk 0:01:17.2]} 18. Bf3 {[%clk 0:01:50.8]} 18... e4 {[%clk 0:01:17.4]}
19. Bc5+ {[%clk 0:01:28.3]} 19... Ke6 {[%clk 0:01:14.2]} 20. Be2 {[%clk
0:01:16.5]} 20... Bh6+ {[%clk 0:00:56.5]} 21. Kb1 {[%clk 0:01:06.8]} 21... Rd2
{[%clk 0:00:50]} 22. Re1 {[%clk 0:01:06]} 22... Rhd8 {[%clk 0:00:50.3]} 23. a4
{[%clk 0:01:00.8]} 23... f5 {[%clk 0:00:31]} 24. Rxa7 {[%clk 0:00:55.3]} 24...
Nd5 {[%clk 0:00:31.3]} 25. Bc4 {[%clk 0:00:48.4]} 25... Ke5 {[%clk 0:00:27.3]}
26. Bxd5 {[%clk 0:00:43.3]} 26... Kxd5 {[%clk 0:00:16.3]} 27. Bb4 {[%clk
0:00:31.9]} 27... Rd4 {[%clk 0:00:13.1]} 28. Bc3 {[%clk 0:00:29.9]} 28... c5
{[%clk 0:00:10.1]} 29. Bxd4 {[%clk 0:00:25.2]} 29... cxd4 {[%clk 0:00:09.9]} 30.
Rxh7 {[%clk 0:00:25.8]} 30... Bf4 {[%clk 0:00:10.5]} 31. Rg7 {[%clk 0:00:19.9]}
31... Rd6 {[%clk 0:00:04.4]} 32. Rd1 {[%clk 0:00:20.1]} 32... Be5 {[%clk
0:00:03.5]} 33. Rg8 {[%clk 0:00:18.6]} 33... Kc4 {[%clk 0:00:03.8]} 34. b3+
{[%clk 0:00:18.5]} 34... Kd5 {[%clk 0:00:03.9]} 35. Rc8 {[%clk 0:00:18.9]} 35...
Rb6 {[%clk 0:00:03.8]} 36. Rc4 {[%clk 0:00:18.9]} 36... f4 {[%clk 0:00:03.2]}
37. Ka2 {[%clk 0:00:18.4]} 37... e3 {[%clk 0:00:03.7]} 38. fxe3 {[%clk
0:00:18.5]} 38... fxe3 {[%clk 0:00:04.6]} 39. Rc8 {[%clk 0:00:18.3]} 39... Ke4
{[%clk 0:00:05]} 40. Re8 {[%clk 0:00:17.5]} 40... Rf6 {[%clk 0:00:05]} 41. a5
{[%clk 0:00:16.5]} 41... Ra6 {[%clk 0:00:04.5]} 42. b4 {[%clk 0:00:16.4]} 42...
Kd5 {[%clk 0:00:04.5]} 43. Kb3 {[%clk 0:00:16.8]} 43... Bxh2 {[%clk 0:00:04.6]}
44. Ka4 {[%clk 0:00:17.1]} 44... Ra7 {[%clk 0:00:04.4]} 45. b5 {[%clk
0:00:17.5]} 45... Bc7 {[%clk 0:00:05]} 46. b6 {[%clk 0:00:17.8]} 46... Bxb6
{[%clk 0:00:05.3]} 47. Kb5 {[%clk 0:00:16.8]} 47... Bxa5 {[%clk 0:00:05.8]} 48.
Ra1 {[%clk 0:00:17.2]} 48... Rb7+ {[%clk 0:00:04.5]} 49. Ka6 {[%clk 0:00:17.3]}
49... Bc3 {[%clk 0:00:04.7]} 50. Rd1 {[%clk 0:00:10.7]} 50... Rb2 {[%clk
0:00:04.2]} 51. Rxe3 {[%clk 0:00:11.2]} 51... Rxc2 {[%clk 0:00:04]} 52. Rg3
{[%clk 0:00:10.9]} 52... Ra2+ {[%clk 0:00:03.1]} 53. Kb7 {[%clk 0:00:11]} 53...
Kc4 {[%clk 0:00:03.1]} 54. Rxg6 {[%clk 0:00:10.6]} 54... d3 {[%clk 0:00:03.8]}
55. Rc6+ {[%clk 0:00:10.4]} 55... Kd4 {[%clk 0:00:03.8]} 56. Rd6+ {[%clk
0:00:10.7]} 56... Kc4 {[%clk 0:00:03.8]} 57. R1xd3 {[%clk 0:00:11.6]} 57... Rxg2
{[%clk 0:00:03.9]} 58. Rf3 {[%clk 0:00:10.3]} 58... Rb2+ {[%clk 0:00:04]} 59.
Kc6 {[%clk 0:00:10.5]} 59... Rc2 {[%clk 0:00:03]} 60. Rf4+ {[%clk 0:00:10.1]}
60... Kb3 {[%clk 0:00:03.9]} 61. Kb5 {[%clk 0:00:09.3]} 61... Rb2 {[%clk
0:00:04.3]} 62. Rc6 {[%clk 0:00:08.5]} 62... Bd2 {[%clk 0:00:03.4]} 63. Rf3+
{[%clk 0:00:08.1]} 63... Ka2+ {[%clk 0:00:03.5]} 64. Kc4 {[%clk 0:00:08.5]}
64... Rb4+ {[%clk 0:00:03.4]} 65. Kd3 {[%clk 0:00:08.1]} 65... Rb2 {[%clk
0:00:03.8]} 66. Rf2 {[%clk 0:00:07.4]} 66... Bb4 {[%clk 0:00:03.5]} 67. Ra6+
{[%clk 0:00:07.7]} 67... Kb3 {[%clk 0:00:03.5]} 68. Rxb2+ {[%clk 0:00:08.2]}
68... Kxb2 {[%clk 0:00:04.4]} 69. Rb6 {[%clk 0:00:08.6]} 69... Kb3 {[%clk
0:00:04.4]} 70. Rb7 {[%clk 0:00:09.1]} 70... Ka4 {[%clk 0:00:04]} 71. Kc4 {[%clk
0:00:09.7]} 1-0

[Event "*** SCC Grand Prix: Titled Tuesday Blitz"]
[Site "Chess.com"]
[Date "2020.07.07"]
[Round "3"]
[White "KNCP_719"]
[Black "FMOlexandrProhorov"]
[Result "1-0"]
[WhiteElo "2478"]
[BlackElo "2137"]
[TimeControl "180+1"]
[EndTime "10:30:43 PDT"]
[Termination "KNCP_719 won by resignation"]

1. d4 {[%clk 0:03:00.9]} 1... g6 {[%clk 0:02:59.3]} 2. e4 {[%clk 0:02:59.4]}
2... Bg7 {[%clk 0:02:59.2]} 3. Nc3 {[%clk 0:03:00]} 3... c6 {[%clk 0:02:59.5]}
4. h3 {[%clk 0:02:59.3]} 4... d5 {[%clk 0:02:57.5]} 5. Nf3 {[%clk 0:02:59.7]}
5... dxe4 {[%clk 0:02:56.2]} 6. Nxe4 {[%clk 0:03:00.6]} 6... Nd7 {[%clk
0:02:56]} 7. Bd3 {[%clk 0:03:00.5]} 7... Ngf6 {[%clk 0:02:55.7]} 8. Nxf6+ {[%clk
0:02:59.7]} 8... Nxf6 {[%clk 0:02:55.8]} 9. O-O {[%clk 0:02:59.6]} 9... O-O
{[%clk 0:02:55.9]} 10. Re1 {[%clk 0:02:57.6]} 10... Qc7 {[%clk 0:02:56]} 11. Ne5
{[%clk 0:02:55]} 11... Be6 {[%clk 0:02:52.5]} 12. Bf4 {[%clk 0:02:54.4]} 12...
Qb6 {[%clk 0:02:49.3]} 13. Bc4 {[%clk 0:02:31.1]} 13... Nd5 {[%clk 0:02:43.7]}
14. Bg3 {[%clk 0:02:23.3]} 14... Rad8 {[%clk 0:02:42.9]} 15. Bb3 {[%clk
0:02:19.5]} 15... a5 {[%clk 0:02:41.3]} 16. a4 {[%clk 0:02:04.5]} 16... c5
{[%clk 0:02:27.4]} 17. Nc4 {[%clk 0:02:02.8]} 17... Qa6 {[%clk 0:02:27.5]} 18.
dxc5 {[%clk 0:02:00.4]} 18... Ne3 {[%clk 0:02:20.1]} 19. Nxe3 {[%clk 0:01:15.6]}
19... Rxd1 {[%clk 0:02:18.8]} 20. Raxd1 {[%clk 0:01:16.5]} 20... Bxb3 {[%clk
0:02:17.3]} 21. cxb3 {[%clk 0:01:17.4]} 21... Bxb2 {[%clk 0:02:14.4]} 22. Nc4
{[%clk 0:01:17.3]} 22... Bf6 {[%clk 0:02:12.2]} 23. Nb6 {[%clk 0:01:12.8]} 23...
Re8 {[%clk 0:02:00.9]} 24. Bc7 {[%clk 0:00:48.4]} 24... e6 {[%clk 0:01:55.1]}
25. Rd7 {[%clk 0:00:29.4]} 25... Bc3 {[%clk 0:01:40.1]} 26. Re3 {[%clk 0:00:28]}
26... Bb4 {[%clk 0:01:37.5]} 27. Bd6 {[%clk 0:00:25.4]} 27... Bd2 {[%clk
0:01:25.7]} 28. Rf3 {[%clk 0:00:23.3]} 28... f5 {[%clk 0:01:21.8]} 29. Be5
{[%clk 0:00:21.4]} 29... Qe2 {[%clk 0:00:51.1]} 30. Rg7+ {[%clk 0:00:21.2]}
30... Kh8 {[%clk 0:00:50.7]} 31. Nd7 {[%clk 0:00:15]} 31... Qe1+ {[%clk
0:00:39.3]} 32. Kh2 {[%clk 0:00:14.4]} 32... Qxe5+ {[%clk 0:00:40]} 33. Nxe5
{[%clk 0:00:14.7]} 33... Kxg7 {[%clk 0:00:40.9]} 34. Nc4 {[%clk 0:00:13.4]}
34... Bb4 {[%clk 0:00:38.8]} 35. Rd3 {[%clk 0:00:12.4]} 35... Re7 {[%clk
0:00:34.9]} 36. f4 {[%clk 0:00:04]} 36... h6 {[%clk 0:00:31.2]} 37. Kg3 {[%clk
0:00:03]} 37... Rc7 {[%clk 0:00:29.6]} 38. Kf3 {[%clk 0:00:02.6]} 38... Kf6
{[%clk 0:00:29.9]} 39. g4 {[%clk 0:00:02.7]} 39... Bxc5 {[%clk 0:00:17.6]} 40.
Ne5 {[%clk 0:00:02.8]} 40... Be7 {[%clk 0:00:14.1]} 41. Nd7+ {[%clk 0:00:01.9]}
41... Kf7 {[%clk 0:00:13.9]} 42. Nb6 {[%clk 0:00:02.8]} 42... Rc6 {[%clk
0:00:13.4]} 43. Nc4 {[%clk 0:00:03]} 43... Rc7 {[%clk 0:00:11.3]} 44. Nxa5
{[%clk 0:00:02.2]} 44... fxg4+ {[%clk 0:00:10.4]} 45. hxg4 {[%clk 0:00:02.1]}
45... h5 {[%clk 0:00:11.3]} 46. Nc4 {[%clk 0:00:02.5]} 46... hxg4+ {[%clk
0:00:11]} 47. Kxg4 {[%clk 0:00:03.4]} 47... Kf6 {[%clk 0:00:10.3]} 48. Ne5
{[%clk 0:00:03.5]} 48... Rc1 {[%clk 0:00:08.6]} 49. Nd7+ {[%clk 0:00:03.1]}
49... Kf7 {[%clk 0:00:08.3]} 50. Ne5+ {[%clk 0:00:04]} 50... Kf6 {[%clk
0:00:08]} 51. Rd7 {[%clk 0:00:04.2]} 51... Rg1+ {[%clk 0:00:07.1]} 52. Kf3
{[%clk 0:00:04.4]} 52... g5 {[%clk 0:00:06.8]} 53. Ng4+ {[%clk 0:00:04.1]} 53...
Kf7 {[%clk 0:00:07.1]} 54. fxg5 {[%clk 0:00:03.5]} 54... Rf1+ {[%clk 0:00:03.8]}
55. Ke2 {[%clk 0:00:03.9]} 55... Rf4 {[%clk 0:00:02.9]} 56. Ne5+ {[%clk
0:00:03.9]} 56... Ke8 {[%clk 0:00:03.4]} 57. Rxe7+ {[%clk 0:00:02.5]} 57... Kxe7
{[%clk 0:00:02.8]} 58. Ng6+ {[%clk 0:00:03.4]} 58... Kf7 {[%clk 0:00:03]} 59.
Nxf4 {[%clk 0:00:04.3]} 59... e5 {[%clk 0:00:03.3]} 60. Nd3 {[%clk 0:00:04.5]}
60... Ke6 {[%clk 0:00:03.3]} 61. Ke3 {[%clk 0:00:04.8]} 61... Kf5 {[%clk
0:00:03.5]} 62. Nc5 {[%clk 0:00:04.8]} 62... Kxg5 {[%clk 0:00:03.4]} 63. Nxb7
{[%clk 0:00:05.2]} 63... Kf5 {[%clk 0:00:04.3]} 64. a5 {[%clk 0:00:06.1]} 1-0